[Event "44th Chess Olympiad Open 2022"]
[Site "Chennai"]
[Date "2022.08.05"]
[Round "7.64"]
[White "Hashem, Khaled"]
[Black "Nay Lin Tun"]
[Result "1-0"]
[ECO "A38"]
[WhiteElo "1870"]
[BlackElo "2045"]
[Annotator "TA"]
[PlyCount "117"]
[EventDate "2022.07.29"]
[EventType "team-tourn"]
[EventCountry "IND"]
[SourceTitle "playchess.com"]
[Source "ChessBase"]
[SourceQuality "1"]
[WhiteTeam "Kuwait"]
[BlackTeam "Myanmar"]
[WhiteTeamCountry "KUW"]
[BlackTeamCountry "MYA"]
[TimeControl "40/5400+30:1800+30"]

{[%evp 19,117,-28,0,-37,3,0,45,23,59,53,87,72,70,53,102,100,114,112,131,128,145,81,291,286,305,305,305,305,305,291,283,273,351,338,432,402,391,396,429,408,400,419,426,415,460,439,675,657,667,571,1204,1356,1439,1496,1101,588,540,0,809,797,793,533,781,712,1569,1585,1388,1393,29976,29977,29977,29978,29980,29981,29986,29979,29967,1437,1237,1424,1393,1375,1074,952,916,714,1139,378,370,356,707,705,685,419,870,825,29991,29992,29992,29993]} 1. Nf3 {[%emt 0:00:03]} Nf6 {[%emt 0:00:12]} 2. c4 {[%emt 0:00:25]} c5 {[%emt 0:00:44]} 3. g3 {[%emt 0:00:06]} g6 {[%emt 0:00:13]} 4. Bg2 {[%emt 0:00:03]} Bg7 {[%emt 0:00:08]} 5. O-O {[%emt 0:00:12]} O-O {[%emt 0:00:54]} 6. Nc3 {[%emt 0:00:09]} Nc6 {[%emt 0:00:45]} 7. a3 {[%emt 0:00:44]} d5 {[%emt 0:02:12]} 8. cxd5 {[%emt 0:01:19]} Nxd5 {[%emt 0:00:08]} 9. Nxd5 {[%emt 0:07:56]} Qxd5 {[%emt 0:00:08]} 10. d3 {[%emt 0:00:02]} Qd6 {[%emt 0:11:26]} 11. Qa4 {[%emt 0:05:08] [#] A38: Symmetrical English vs ...g6: 4 Bg2 Bg7 5 Nf3 Nf6.} (11. Bf4 $5 {[%cal Rf4d6]} e5 12. Be3 $11) 11... Nd4 $146 {[%emt 0:20:46]} ({Predecessor:} 11... e5 12. Be3 Bd7 13. Qh4 Nd4 14. Nxd4 exd4 15. Bf4 Be5 16. Bxe5 Qxe5 17. Bxb7 Rab8 18. Bf3 Rxb2 {0-1 (41) Kalinski,K-Feletar,D (2355) Zagreb 1998}) 12. Nxd4 {[%emt 0:02:09]} cxd4 {[%emt 0:01:15]} 13. Bd2 {[%emt 0:06:33] White is slightly better.} Bg4 {[%emt 0:24:08]} 14. Rfe1 {[%emt 0:03:52]} Qb6 {[%emt 0:11:33]} 15. Qb4 {[%emt 0:13:06]} Rac8 {[%emt 0:11:55]} 16. h3 {[%emt 0:04:21]} (16. Bxb7 Rc2 $11) 16... Be6 {[%emt 0:01:52]} (16... Qxb4 $14 {deserves consideration.} 17. axb4 (17. Bxb4 Bd7 $14) 17... Be6) 17. Rac1 {[%emt 0:06:30]} ({Of course not} 17. Bxb7 $6 Rc2 $11) 17... Qxb4 {[%emt 0:04:35]} 18. Bxb4 {[%emt 0:00:28]} Bh6 {[%emt 0:01:12]} 19. f4 {[%emt 0:00:56]} Rfe8 {[%emt 0:02:48]} 20. h4 {[%emt 0:05:19]} ({White should try} 20. Bxb7 Rb8 21. Rc7) 20... b6 $2 {[%emt 0:01:33] [#]} (20... Bg4 $16 {might work better.}) 21. Bc6 $18 {[%emt 0:01:05]} Red8 {[%emt 0:01:38]} 22. Bxe7 {[%emt 0:00:33]} Bf8 {[%emt 0:00:20]} 23. Bxd8 {[%emt 0:01:14]} Rxd8 {[%emt 0:00:03]} 24. Bb5 {[%emt 0:13:18]} Bd6 {[%emt 0:01:19]} 25. Rc2 {[%emt 0:03:12]} a5 {[%emt 0:00:37]} 26. Rb1 {[%emt 0:02:40]} h6 {[%emt 0:00:30]} 27. b4 {[%emt 0:02:08]} axb4 {[%emt 0:00:15]} 28. axb4 {[%emt 0:00:02]} g5 {[%emt 0:00:27]} 29. hxg5 {[%emt 0:03:17]} hxg5 {[%emt 0:00:03]} 30. Rc6 {[%emt 0:00:05]} gxf4 {[%emt 0:00:55]} 31. Bc4 {[%emt 0:06:01]} Bg4 {[%emt 0:00:45]} 32. gxf4 {[%emt 0:01:56]} Bxe2 {[%emt 0:00:33]} (32... b5 $142 33. Bxb5 Kg7) 33. Kf2 {[%emt 0:00:15]} Bh5 {[%emt 0:00:25]} 34. Rxb6 {[%emt 0:01:48]} Bxf4 {[%emt 0:00:25]} 35. Rh1 {[%emt 0:00:27]} Be3+ {[%emt 0:00:35]} 36. Kg3 {[%emt 0:01:45]} Be2 {[%emt 0:00:25]} 37. Re1 {[%emt 0:04:56]} Bh5 {[%emt 0:00:30]} 38. Rh1 {[%emt 0:00:01]} Be2 {[%emt 0:00:03] A strong pair of Bishops.} 39. Rh2 {[%emt 0:00:08]} Bd1 {[%emt 0:00:40]} 40. Rg6+ {[%emt 0:02:07]} Kf8 {[%emt 0:00:14]} 41. Rf6 {[%emt 0:30:22]} Kg7 {[%emt 0:31:16]} 42. Rxf7+ {[%emt 0:03:21]} Kg6 {[%emt 0:00:24]} 43. Ra2 {[%emt 0:00:00] [#] Strongly threatening Rf1.} Rd6 {[%emt 0:00:00]} 44. b5 {[%emt 0:00:00][%cal Bb4b5,Bb5b6,Bb6b7][%mdl 32]} Kg5 {[%emt 0:04:10]} 45. Ra6 {[%emt 0:00:00]} Rd8 {[%emt 0:00:00]} 46. b6 {[%emt 0:00:00]} Rh8 {[%emt 0:00:00]} 47. b7 {[%emt 0:00:00]} Bg1 {[%emt 0:00:00]} 48. Rd7 {[%emt 0:00:00]} (48. Rg7+ $142 Kf5 49. Be6+ Kf6 50. Rf7+ Kg5 51. Rf5+ Kg6 52. Bc8+ Kg7 53. Ra2) 48... Bh2+ {[%emt 0:00:00]} 49. Kg2 {[%emt 0:00:00]} Bb8 {[%emt 0:00:00]} 50. Rg7+ {[%emt 0:00:00]} Kf4 {[%emt 0:00:00]} 51. Rg8 {[%emt 0:00:00]} Bf3+ {[%emt 0:00:00]} 52. Kf2 {[%emt 0:00:00]} Rh2+ {[%emt 0:00:00]} 53. Kf1 $2 {[%emt 0:01:20]} (53. Ke1 {White threatens Rf6+ and mate.} Be5 54. b8=Q Re2+ 55. Kf1 Bxb8 56. Rf6+ Ke3 57. Rxb8 Bg2+ 58. Kg1) 53... Rh1+ {[%emt 0:00:00]} 54. Rg1 {[%emt 0:02:21]} ({Less strong is} 54. Kf2 Rh2+ 55. Ke1 Be5 $18) 54... Rh7 $2 {[%emt 0:00:00]} (54... Bxb7 55. Rxh1 Bxh1) 55. Rf6+ {[%emt 0:00:34]} Ke3 {[%emt 0:00:00]} 56. Rf8 {[%emt 0:01:46]} Be2+ {[%emt 0:00:00]} (56... Rxb7 $142 57. Rxf3+ (57. Re8+ Kd2 $16) 57... Kxf3 58. Bd5+ Ke3 59. Bxb7 Kxd3) 57. Ke1 {[%emt 0:00:23]} Rh1 {[%emt 0:03:23]} 58. Re8+ {[%emt 0:00:26]} Kf3 {[%emt 0:00:09]} 59. Bd5+ {[%emt 0:00:35] Weighted Error Value: White=0.34/Black=0.60} 1-0

[Event "44th Chess Olympiad Open 2022"]
[Site "Chennai"]
[Date "2022.08.05"]
[Round "7.64"]
[White "Al Ibrahim, Abdulrahman"]
[Black "Zaw Ye Htut"]
[Result "1/2-1/2"]
[ECO "B01"]
[WhiteElo "1822"]
[BlackElo "1255"]
[Annotator "NA RC COMBH"]
[PlyCount "119"]
[EventDate "2022.07.29"]
[EventType "team-tourn"]
[EventCountry "IND"]
[SourceTitle "playchess.com"]
[Source "ChessBase"]
[SourceQuality "1"]
[WhiteTeam "Kuwait"]
[BlackTeam "Myanmar"]
[WhiteTeamCountry "KUW"]
[BlackTeamCountry "MYA"]
[TimeControl "40/5400+30:1800+30"]

1. e4 {[%emt 0:00:02]} d5 {[%emt 0:00:31]} 2. exd5 {[%emt 0:00:06]} Qxd5 {[%emt 0:00:05]} 3. Nc3 {[%emt 0:00:04]} Qa5 {[%emt 0:00:12]} 4. d4 {[%emt 0:00:10]} Nf6 {[%emt 0:00:16]} 5. Nf3 {[%emt 0:03:04]} Nc6 {[%emt 0:00:14]} 6. Bb5 {[%emt 0:04:01]} Nd5 {[%emt 0:00:13]} 7. Bd2 {[%emt 0:15:09]} Nxc3 {[%emt 0:00:18]} 8. Bxc6+ {[%emt 0:00:04]} bxc6 {[%emt 0:00:08]} 9. Bxc3 {[%emt 0:00:11]} Qd5 {[%emt 0:00:09]} 10. h3 {[%emt 0:00:50]} Ba6 {[%emt 0:00:34]} 11. Qd2 {[%emt 0:00:44]} e6 {[%emt 0:01:47]} 12. b3 {[%emt 0:02:59]} Bd6 {[%emt 0:02:03]} 13. O-O-O {[%emt 0:02:16]} O-O {[%emt 0:10:31]} 14. Bb4 {[%emt 0:04:28]} Bxb4 {[%emt 0:12:21]} 15. Qxb4 {[%emt 0:00:05]} Be2 {[%emt 0:00:19]} 16. Rde1 {[%emt 0:12:11]} a5 {[%emt 0:01:59]} 17. Qd2 {[%emt 0:03:29]} Bxf3 {[%emt 0:01:30]} 18. Re5 {[%emt 0:00:28]} Qd6 {[%emt 0:01:38]} 19. gxf3 {[%emt 0:00:07]} Qa3+ {[%emt 0:03:16]} 20. Kb1 {[%emt 0:00:16]} a4 {[%emt 0:01:08]} 21. Rg1 {[%emt 0:00:25]} g6 {[%emt 0:02:00]} 22. Rc5 {[%emt 0:06:54]} Ra6 {[%emt 0:11:13]} 23. Qc1 {[%emt 0:01:11]} axb3 {[%emt 0:03:08]} 24. Qxa3 {[%emt 0:00:31]} Rxa3 {[%emt 0:01:08]} 25. axb3 {[%emt 0:01:21]} Rfa8 {[%emt 0:01:22]} 26. Kb2 {[%emt 0:00:04]} R8a6 {[%emt 0:00:48]} 27. h4 {[%emt 0:01:09]} Kf8 {[%emt 0:01:29]} 28. h5 {[%emt 0:00:09]} Ke7 {[%emt 0:00:38]} 29. hxg6 {[%emt 0:00:19]} hxg6 {[%emt 0:00:15]} 30. Rh1 {[%emt 0:03:34]} Ra2+ {[%emt 0:01:25]} 31. Kc3 {[%emt 0:00:05]} Rb6 {[%emt 0:00:32]} 32. Kd3 {[%emt 0:05:35]} Ra8 {[%emt 0:04:41]} 33. Ke4 {[%emt 0:00:47]} Rd8 {[%emt 0:01:11]} 34. Rh3 {[%emt 0:04:39]} Rb4 {[%emt 0:08:16]} 35. c3 {[%emt 0:05:21]} Rxb3 {[%emt 0:00:35]} 36. Rxc6 {[%emt 0:00:07]} Kd7 {[%emt 0:02:06]} 37. Rc5 {[%emt 0:00:19]} Kd6 {[%emt 0:00:57]} 38. Rh7 {[%emt 0:01:33]} Rd7 {[%emt 0:00:28]} 39. Rh1 {[%emt 0:01:09]} c6 {[%emt 0:04:07]} 40. Ra1 {[%emt 0:02:26]} f5+ {[%emt 0:02:50]} 41. Ke3 {[%emt 0:31:01]} g5 {[%emt 0:31:12]} 42. Rg1 {[%emt 0:03:49]} Rg7 {[%emt 0:01:14]} 43. Ra1 {[%emt 0:02:15]} Rb2 {[%emt 0:00:25]} 44. Ra6 {[%emt 0:01:24]} Rc7 {[%emt 0:00:39]} 45. Ra8 {[%emt 0:08:40]} f4+ {[%emt 0:00:30]} 46. Kd3 {[%emt 0:00:05]} Rxf2 {[%emt 0:00:21]} 47. Rxg5 {[%emt 0:00:29]} Rxf3+ {[%emt 0:00:31]} 48. Ke4 {[%emt 0:00:22]} Rxc3 {[%emt 0:00:56]} 49. Rf8 {[%emt 0:00:31]} c5 {[%emt 0:04:09]} 50. dxc5+ {[%emt 0:01:48]} R3xc5 {[%emt 0:00:55]} 51. Rxc5 {[%emt 0:00:05]} Rxc5 {[%emt 0:00:13]} 52. Kxf4 {[%emt 0:00:11]} Rc4+ {[%emt 0:00:36]} 53. Ke3 {[%emt 0:00:13]} Ke5 {[%emt 0:00:12]} 54. Ra8 {[%emt 0:00:57]} Rc5 {[%emt 0:01:11]} 55. Ra4 {[%emt 0:00:16]} Rc3+ {[%emt 0:01:34]} 56. Kd2 {[%emt 0:00:27]} Rh3 {[%emt 0:00:27]} 57. Ke2 {[%emt 0:00:10]} Kf5 {[%emt 0:00:16]} 58. Rb4 {[%emt 0:01:00]} e5 {[%emt 0:00:45]} 59. Ra4 {[%emt 0:03:36]} Rg3 {[%emt 0:04:00]} 60. Rb4 {[%emt 0:00:36]} 1/2-1/2

[Event "44th Chess Olympiad Open 2022"]
[Site "Chennai"]
[Date "2022.08.05"]
[Round "7.65"]
[White "Bridet, Robert"]
[Black "Schadler, Martin"]
[Result "1-0"]
[ECO "B06"]
[WhiteElo "1497"]
[BlackElo "1939"]
[Annotator "TA"]
[PlyCount "93"]
[EventDate "2022.07.29"]
[EventType "team-tourn"]
[EventCountry "IND"]
[SourceTitle "playchess.com"]
[Source "ChessBase"]
[SourceQuality "1"]
[WhiteTeam "DMA"]
[BlackTeam "Liechtenstein"]
[BlackTeamCountry "LIE"]
[TimeControl "40/5400+30:1800+30"]

{[%evp 9,93,36,40,32,53,33,500,195,434,418,444,418,536,504,491,476,547,539,528,449,482,366,365,357,366,352,347,305,387,381,363,310,295,216,276,270,372,362,356,258,376,297,311,308,388,353,388,394,393,390,424,422,455,456,452,452,456,448,532,539,528,531,533,493,543,489,495,404,638,633,627,627,690,650,841,832,929,952,1561,1651,2278,1619,29993,29992,29992,29989]} 1. e4 {[%emt 0:00:05]} d6 {[%emt 0:00:09]} 2. d4 {[%emt 0:00:32]} g6 {[%emt 0:01:22]} 3. Nf3 {[%emt 0:00:47]} Bg7 {[%emt 0:00:13]} 4. Be3 {[%emt 0:02:04]} a6 {[%emt 0:00:23]} 5. Nbd2 {[%emt 0:00:52]} Nd7 {[%emt 0:10:35]} 6. c3 {[%emt 0:01:17] B06: Modern Defence.} b6 {[%emt 0:08:53]} 7. Bc4 {[%emt 0:02:25] [#]} b5 $146 {[%emt 0:00:20][%mdl 8192] [#]} ({Better is} 7... e6 $14) ({Predecessor:} 7... e6 8. O-O Ne7 9. Re1 h6 10. Qc2 Bb7 11. Bd3 g5 12. h3 Ng6 13. b3 Qe7 {1-0 (32) Lauferon,A (1865)-Capelle,T Europe Echecs INT 2020}) 8. Bd5 $2 {[%emt 0:02:07]} (8. Bxf7+ $1 {[%mdl 512]} Kf8 9. Ng5) 8... Rb8 $2 {[%emt 0:00:13] [#]} (8... c6 {might work better.}) 9. Bxf7+ $1 $18 {[%emt 0:07:12][%mdl 512]} Kf8 {[%emt 0:11:06]} 10. Ng5 {[%emt 0:00:46] Ne6+ is the strong threat.} Nb6 {[%emt 0:00:47]} 11. Qf3 {[%emt 0:09:56] Strongly threatening Bxg8+.} Nf6 {[%emt 0:01:03]} 12. Ne6+ {[%emt 0:04:20]} Bxe6 {[%emt 0:01:35]} 13. Bxe6 {[%emt 0:00:15]} Nbd7 {[%emt 0:03:25]} 14. Qf4 {[%emt 0:03:09]} h5 {[%emt 0:11:23]} 15. Nf3 {[%emt 0:09:07][%cal Bd2f3,Bf3g5,Bg5e6,Be6c7][%mdl 32]} Bh6 {[%emt 0:01:22]} 16. Qh4 {[%emt 0:05:49]} Kg7 {[%emt 0:05:21]} 17. e5 {[%emt 0:05:40]} Ng4 {[%emt 0:02:55]} 18. Bg5 {[%emt 0:03:45]} Bxg5 {[%emt 0:01:54]} 19. Nxg5 {[%emt 0:00:54]} ({Not} 19. Qxg5 Nf8 $18) 19... Nh6 {[%emt 0:00:54]} 20. Qh3 {[%emt 0:03:04]} Nf8 {[%emt 0:03:42]} 21. Qf3 {[%emt 0:04:44]} Qe8 {[%emt 0:00:24]} 22. O-O {[%emt 0:02:21]} Nxe6 {[%emt 0:01:39]} 23. Nxe6+ {[%emt 0:00:05]} Kh7 {[%emt 0:00:05]} 24. Nxc7 {[%emt 0:01:26]} Qd7 {[%emt 0:05:25]} (24... Qc8 $142) 25. exd6 {[%emt 0:02:23]} Qxd6 {[%emt 0:00:23]} 26. Qg3 {[%emt 0:02:51]} Qc6 {[%emt 0:05:51]} 27. d5 {[%emt 0:02:08]} Qd6 {[%emt 0:01:52]} 28. Qxd6 {[%emt 0:00:35]} exd6 {[%emt 0:00:11]} 29. Nxa6 {[%emt 0:00:19]} Rbe8 {[%emt 0:01:38]} 30. Rfe1 {[%emt 0:00:05]} Ng4 {[%emt 0:00:21]} 31. Nc7 {[%emt 0:00:49][%csl LRb5,LRe8]} Rb8 {[%emt 0:02:23]} 32. Re7+ {[%emt 0:00:08]} Kh6 {[%emt 0:00:08]} 33. Rae1 {[%emt 0:02:04]} Ne5 {[%emt 0:00:44]} 34. f4 {[%emt 0:01:51]} Nd3 {[%emt 0:00:18]} 35. R1e6 {[%emt 0:01:00]} Nxf4 {[%emt 0:01:53]} 36. Rxd6 {[%emt 0:00:33]} Nd3 {[%emt 0:01:06]} 37. Ree6 {[%emt 0:01:54]} Rhg8 {[%emt 0:00:32]} 38. Rb6 {[%emt 0:01:23]} Rbd8 {[%emt 0:00:25]} (38... Nxb2 $142 39. Rxg6+ Rxg6 40. Rxb8 Nd1 41. Rh8+ Kg7) 39. Rxb5 {[%emt 0:00:37]} Rd7 {[%emt 0:00:18]} 40. d6 {[%emt 0:00:14][%cal Bd5d6,Bd6d7][%mdl 32]} Rf8 {[%emt 0:00:50]} 41. Rb6 {[%emt 0:34:19]} Rdf7 {[%emt 0:34:53][%csl Gf8][%cal Rf7f1]} 42. h4 {[%emt 0:02:47]} Rf1+ {[%emt 0:01:41]} 43. Kh2 {[%emt 0:02:25] aiming for d7.} Nf2 {[%emt 0:00:32]} 44. d7 {[%emt 0:01:36]} Ng4+ {[%emt 0:08:55]} 45. Kg3 {[%emt 0:00:31]} R8f2 {[%emt 0:02:25]} 46. Rxg6+ {[%emt 0:00:35]} Kh7 {[%emt 0:00:06]} 47. Rxg4 {[%emt 0:00:36] White took control after the opening.  Weighted Error Value: White=0.43/Black=0.66} 1-0

[Event "44th Chess Olympiad Open 2022"]
[Site "Chennai"]
[Date "2022.08.05"]
[Round "7.65"]
[White "Thomas, Larry"]
[Black "Frick, Renato"]
[Result "0-1"]
[ECO "D00"]
[WhiteElo "1317"]
[BlackElo "1900"]
[Annotator "TA"]
[PlyCount "100"]
[EventDate "2022.07.29"]
[EventType "team-tourn"]
[EventCountry "IND"]
[SourceTitle "playchess.com"]
[Source "ChessBase"]
[SourceQuality "1"]
[WhiteTeam "DMA"]
[BlackTeam "Liechtenstein"]
[BlackTeamCountry "LIE"]
[TimeControl "40/5400+30:1800+30"]

{[%evp 9,100,27,34,-37,-9,-18,43,51,50,15,16,20,26,24,34,-24,7,-4,12,7,-6,-41,-9,0,0,-10,37,-37,-19,-17,88,81,124,125,127,-252,-243,-264,-250,-257,-236,-238,-262,-244,-275,-653,-652,-654,-642,-636,-614,-629,-625,-703,-691,-758,-754,-731,-733,-923,-862,-812,-824,-803,-793,-923,-924,-889,-986,-954,-946,-910,-900,-968,-981,-962,-956,-951,-943,-920,-920,-1109,-1110,-1274,-1233,-1304,-1262,-1720,-1750,-1683,-1956,-29976,-6411]} 1. d4 {[%emt 0:00:08]} Nf6 {[%emt 0:00:14]} 2. Nc3 {[%emt 0:00:24]} d5 {[%emt 0:01:26]} 3. Bf4 {[%emt 0:00:19]} g6 {[%emt 0:00:15]} 4. Qd2 {[%emt 0:00:49]} c6 {[%emt 0:00:21]} 5. f3 {[%emt 0:04:34]} b5 {[%emt 0:03:26] [#]} 6. Bh6 $146 {[%emt 0:02:35] D00: 1 d4 d5: Unusual lines.} ({White should try} 6. a3 $14) ({Predecessor:} 6. a3 Nbd7 7. e4 Nb6 8. e5 Nfd7 9. Bh6 a5 10. Bd3 Bb7 11. Bxf8 Nxf8 12. Nge2 {1-0 (27) Naroditsky,D (2646)-Borisek,J (2561) Chess.com INT 2016}) 6... Qa5 {[%emt 0:09:02]} 7. Bxf8 {[%emt 0:01:01]} Rxf8 {[%emt 0:00:08]} (7... Kxf8 $11 8. e4 b4) 8. e3 $14 {[%emt 0:01:10] White is slightly better.} Nbd7 {[%emt 0:00:24]} 9. Bd3 {[%emt 0:01:28]} e5 {[%emt 0:05:46]} 10. a3 {[%emt 0:13:06]} Qc7 {[%emt 0:07:03]} 11. Nge2 {[%emt 0:07:02]} Bb7 {[%emt 0:10:24]} 12. Ng3 {[%emt 0:08:50]} ({White should play} 12. b4 $14) 12... a5 {[%emt 0:04:56]} 13. O-O {[%emt 0:04:48]} h5 {[%emt 0:07:48]} 14. dxe5 {[%emt 0:07:08]} Nxe5 {[%emt 0:01:10]} 15. e4 {[%emt 0:06:10]} O-O-O {[%emt 0:03:46]} 16. exd5 {[%emt 0:05:01]} Nxd5 {[%emt 0:05:21]} 17. Rfe1 {[%emt 0:03:08]} f5 {[%emt 0:06:27] Inhibits Nge4.} (17... Nb6 $11) 18. Nge2 {[%emt 0:03:30]} (18. Nxd5 $14 Rxd5 19. Ne2) 18... Qb6+ $15 {[%emt 0:10:50]} 19. Kh1 {[%emt 0:00:49]} Ne3 {[%emt 0:02:12]} (19... Qe3 $11 {keeps the balance.} 20. Qxe3 Nxe3) 20. Nf4 $16 {[%emt 0:02:35]} N3c4 {[%emt 0:10:53]} 21. Qe2 {[%emt 0:02:29]} Rfe8 {[%emt 0:00:59]} 22. Qf1 {[%emt 0:07:18][%mdl 8192] Now White is beyond hope.} (22. Bxc4 $16 {is necessary to keep the advantage.} bxc4 23. Qe3 Qxe3 24. Rxe3) 22... Nxb2 $19 {[%emt 0:02:17]} 23. Rab1 {[%emt 0:00:35]} Nbxd3 {[%emt 0:00:59]} 24. cxd3 {[%emt 0:01:20]} Qd4 {[%emt 0:01:02][%csl LRc3,LRd3,LRf4]} 25. Nce2 {[%emt 0:00:38]} Qd6 {[%emt 0:00:44]} 26. d4 {[%emt 0:00:19]} Nc4 {[%emt 0:00:12]} 27. Nd3 $2 {[%emt 0:01:41]} (27. Rbc1) 27... Nd2 {[%emt 0:00:34]} 28. Qf2 {[%emt 0:00:17]} Nxb1 {[%emt 0:00:20]} 29. Rxb1 {[%emt 0:00:02]} Qxa3 {[%emt 0:00:23]} 30. Ne5 {[%emt 0:02:09]} Qa2 {[%emt 0:00:57]} 31. Rc1 {[%emt 0:00:09]} Qb2 {[%emt 0:01:21]} 32. Qe1 {[%emt 0:01:28]} Rxe5 {[%emt 0:01:04]} 33. dxe5 {[%emt 0:00:03]} Qxe5 {[%emt 0:00:09]} 34. Rc2 {[%emt 0:01:01]} b4 {[%emt 0:00:41] [#] And now ...b3 would win.} 35. Qc1 {[%emt 0:00:02]} Qd5 {[%emt 0:00:15] White must now prevent ...Qd1+.} 36. Ng1 {[%emt 0:01:06]} Kc7 {[%emt 0:00:15]} 37. Rc5 {[%emt 0:00:02]} Qd1 {[%emt 0:01:52]} 38. Qf4+ {[%emt 0:00:15]} Kb6 {[%emt 0:00:10]} 39. Rc1 {[%emt 0:00:46]} Qd2 {[%emt 0:00:19]} 40. Qc4 {[%emt 0:00:20]} Qd5 {[%emt 0:00:37] [#] Hoping for ...Qxc4.} 41. Qe2 {[%emt 0:30:57]} Ba6 {[%emt 0:30:38]} 42. Qe3+ {[%emt 0:00:13]} Qd4 {[%emt 0:01:09]} 43. Qe6 {[%emt 0:00:32]} Qd6 {[%emt 0:00:00]} 44. Qe3+ {[%emt 0:00:00]} c5 {[%emt 0:00:00]} 45. Re1 {[%emt 0:00:00]} a4 {[%emt 0:00:00][%cal Ba5a4,Ba4a3][%mdl 32]} 46. Rb1 {[%emt 0:00:00]} Qd4 {[%emt 0:00:00]} 47. Qe6+ {[%emt 0:00:00]} Rd6 {[%emt 0:00:00]} 48. Qe8 {[%emt 0:00:00]} a3 {[%emt 0:00:00] aiming for ...a2.} 49. Qa4 {[%emt 0:00:00]} Bb5 {[%emt 0:00:00]} 50. Qa8 {[%emt 0:00:00]} Rd8 {[%emt 0:00:00] Weighted Error Value: White=0.62/Black=0.16 (very precise)} 0-1

[Event "44th Chess Olympiad Open 2022"]
[Site "Chennai"]
[Date "2022.08.05"]
[Round "7.67"]
[White "Willem Blijstra"]
[Black "Van den Brink, Peter"]
[Result "0-1"]
[ECO "D30"]
[WhiteElo "2198"]
[BlackElo "2167"]
[Annotator "ChessBase"]
[PlyCount "90"]
[EventDate "2022.07.29"]
[EventType "team-tourn"]
[EventCountry "IND"]
[SourceTitle "playchess.com"]
[Source "ChessBase"]
[SourceQuality "1"]
[WhiteTeam "Netherlands Antilles"]
[BlackTeam "ARU"]
[WhiteTeamCountry "AHO"]
[TimeControl "40/5400+30:1800+30"]

1. d4 {[%emt 0:00:04]} d5 {[%emt 0:00:08]} 2. Nf3 {[%emt 0:00:12]} Nf6 {[%emt 0:00:14]} 3. c4 {[%emt 0:02:15]} e6 {[%emt 0:00:13]} 4. Bg5 {[%emt 0:00:07]} Be7 {[%emt 0:00:16]} 5. e3 {[%emt 0:00:15]} h6 {[%emt 0:02:06]} 6. Bh4 {[%emt 0:04:16]} Ne4 {[%emt 0:05:37]} 7. Bxe7 {[%emt 0:02:38]} Qxe7 {[%emt 0:00:14]} 8. Qb3 {[%emt 0:00:52]} c6 {[%emt 0:02:55]} 9. Bd3 {[%emt 0:01:01]} Nd7 {[%emt 0:00:38]} 10. O-O {[%emt 0:00:27]} O-O {[%emt 0:01:58]} 11. Qc2 {[%emt 0:06:15]} Nef6 {[%emt 0:07:28]} 12. Qc3 {[%emt 0:05:49]} c5 {[%emt 0:14:11]} 13. Nbd2 {[%emt 0:07:09]} b6 {[%emt 0:03:04]} 14. Ne5 {[%emt 0:05:27]} Bb7 {[%emt 0:03:28]} 15. f4 {[%emt 0:16:15]} cxd4 {[%emt 0:03:24]} 16. exd4 {[%emt 0:03:04]} Rfc8 {[%emt 0:04:43]} 17. b3 {[%emt 0:01:22]} dxc4 {[%emt 0:07:09]} 18. bxc4 {[%emt 0:00:45]} Nd5 {[%emt 0:20:57]} 19. Qb2 {[%emt 0:00:56]} Ne3 {[%emt 0:01:41]} 20. Rf2 {[%emt 0:01:04]} Nxe5 {[%emt 0:03:21]} 21. fxe5 {[%emt 0:01:04]} Qg5 {[%emt 0:06:51]} 22. g3 {[%emt 0:04:43]} h5 {[%emt 0:02:08]} 23. Rf4 {[%emt 0:00:55]} Rc7 {[%emt 0:05:11]} 24. Be4 {[%emt 0:08:20]} Nxc4 {[%emt 0:01:08]} 25. Qc3 {[%emt 0:01:13]} Rac8 {[%emt 0:02:37]} 26. Bxb7 {[%emt 0:01:24]} Nxd2 {[%emt 0:00:47]} 27. Qxd2 {[%emt 0:01:06]} Rxb7 {[%emt 0:00:00]} 28. Raf1 {[%emt 0:00:24]} Rbc7 {[%emt 0:00:08]} 29. R1f2 {[%emt 0:00:32]} Qg6 {[%emt 0:00:13]} 30. d5 {[%emt 0:00:46]} exd5 {[%emt 0:01:11]} 31. Qxd5 {[%emt 0:00:03]} Qe6 {[%emt 0:00:32]} 32. Qf3 {[%emt 0:00:32]} Qxe5 {[%emt 0:00:38]} 33. Rxf7 {[%emt 0:00:14]} Qg5 {[%emt 0:01:12]} 34. Kg2 {[%emt 0:00:32]} Rc2 {[%emt 0:00:12]} 35. Rf8+ {[%emt 0:00:06]} Kh7 {[%emt 0:00:19]} 36. Qe4+ {[%emt 0:00:02]} Qg6 {[%emt 0:00:09]} 37. Qxg6+ {[%emt 0:01:18]} Kxg6 {[%emt 0:00:03]} 38. a4 {[%emt 0:00:16]} Rxf2+ {[%emt 0:00:16]} 39. Rxf2 {[%emt 0:00:04]} Rc4 {[%emt 0:00:10]} 40. Ra2 {[%emt 0:00:06]} Rb4 {[%emt 0:00:14]} 41. a5 {[%emt 0:30:04]} b5 {[%emt 0:30:09]} 42. a6 {[%emt 0:00:04]} Ra4 {[%emt 0:00:43]} 43. Rb2 {[%emt 0:00:01]} b4 {[%emt 0:00:15]} 44. Kf3 {[%emt 0:00:08]} Kf5 {[%emt 0:02:44]} 45. Kf2 {[%emt 0:03:28]} Ke4 {[%emt 0:00:00]} 0-1